bitfinex-derivatives/quotes_ETHF0:USTF0_20230106
["timestamp","ask_amount","ask_price","bid_price","bid_amount"]
[1672984331888,2.99216359,1248.5,1248.4,3.70023793]
[1672984332099,6.19996359,1248.5,1248.4,3.70023793]
[1672984333258,6.19996359,1248.5,1248.4,5.50079157]
[1672984334098,6.19996359,1248.5,1248.4,4.30055364]
[1672984335675,2.99216359,1248.5,1248.4,4.30055364]
[1672984335885,6.19996359,1248.5,1248.4,4.30055364]
[1672984339041,2.99216359,1248.5,1248.4,4.30055364]
[1672984339243,6.19996359,1248.5,1248.4,4.30055364]
[1672984339454,6.19996359,1248.5,1248.4,3.00093329]
[1672984340406,6.19996359,1248.5,1248.4,1.20037965]
[1672984341351,6.19996359,1248.5,1248.4,3.00093329]
[1672984342186,6.19996359,1248.5,1248.4,1.20037965]
[1672984344500,6.19996359,1248.5,1248.4,3.00093329]
[1672984345341,6.19996359,1248.5,1248.4,5.50093329]
[1672984345971,6.19996359,1248.5,1248.4,3.00093329]
[1672984349760,6.19996359,1248.5,1248.4,5.50093329]
[1672984350809,6.19996359,1248.5,1248.4,4.30055364]
[1672984351020,6.19996359,1248.5,1248.4,5.50116456]
[1672984351650,6.19996359,1248.5,1248.4,3.00116456]
[1672984352911,3.2078,1248.5,1248.4,3.00116456]
[1672984354691,6.19862977,1248.5,1248.4,3.00116456]
[1672984354907,3.2078,1248.5,1248.4,3.00116456]
[1672984356172,3.2078,1248.5,1248.4,5.50116456]
[1672984356381,6.19918813,1248.5,1248.4,5.50116456]
[1672984356687,6.19918813,1248.5,1248.4,4.30055364]
[1672984357115,3.2078,1248.5,1248.4,4.30055364]
[1672984357326,3.2078,1248.5,1248.4,1.80055364]
[1672984359954,3.2078,1248.5,1248.4,3.00196424]
[1672984360165,3.2078,1248.5,1248.4,1.80055364]
[1672984361107,5.7078,1248.5,1248.4,1.79271387]
[1672984361422,3.2078,1248.5,1248.4,1.79271387]
[1672984361740,3.2078,1248.5,1248.4,4.29271387]
[1672984362476,5.7078,1248.5,1248.4,4.29271387]
[1672984362889,6.20008632,1248.5,1248.4,4.29271387]
[1672984363309,6.20008632,1248.5,1248.4,1.79271387]
[1672984363524,3.2078,1248.5,1248.4,1.79271387]
[1672984364157,3.2078,1248.5,1248.4,4.29271387]
[1672984364782,3.2078,1248.5,1248.4,2.99412595]
[1672984364999,3.2078,1248.5,1248.4,1.79271387]
[1672984366360,6.20120015,1248.5,1248.4,1.79271387]
[1672984366675,6.20120015,1248.5,1248.4,4.19344351]
[1672984367106,2.99340015,1248.5,1248.4,4.19344351]
[1672984367410,6.20127483,1248.5,1248.4,1.79271387]
[1672984367833,2.99347483,1248.5,1248.4,1.79271387]
[1672984368143,6.20127483,1248.5,1248.4,1.79271387]
[1672984368990,3.2078,1248.5,1248.4,1.79271387]
[1672984369199,6.20146284,1248.5,1248.4,1.79271387]
[1672984369618,2.99366284,1248.5,1248.4,1.79271387]
[1672984369931,6.20146284,1248.5,1248.4,1.79271387]
[1672984370564,2.99366284,1248.5,1248.4,1.79271387]
[1672984370987,6.20146284,1248.5,1248.4,1.79271387]
[1672984372037,2.99366284,1248.5,1248.4,1.79271387]
[1672984372244,2.99366284,1248.5,1248.4,4.29271387]
[1672984372558,6.20146284,1248.5,1248.4,4.29271387]
[1672984372772,6.20146284,1248.5,1248.4,6.69344351]
[1672984372974,6.20146284,1248.5,1248.4,6.32053423]
[1672984374350,8.59595347,1248.5,1248.4,6.32053423]
[1672984376240,5.60229063,1248.5,1248.4,6.32053423]
[1672984376451,8.59595347,1248.5,1248.4,6.32053423]
[1672984377916,5.38815347,1248.5,1248.4,6.32053423]
[1672984378125,5.60229063,1248.5,1248.4,6.32053423]
[1672984378864,2.39449063,1248.5,1248.4,6.32053423]
[1672984379071,8.59595347,1248.5,1248.4,6.32053423]
[1672984379920,5.38815347,1248.5,1248.4,6.32053423]
[1672984380234,8.59595347,1248.5,1248.4,6.32053423]
[1672984380765,5.60229063,1248.5,1248.4,6.32053423]
[1672984381283,2.39449063,1248.5,1248.4,6.32053423]
[1672984381490,5.60229063,1248.5,1248.4,6.32053423]
[1672984382863,2.39449063,1248.5,1248.4,6.32053423]
[1672984383173,5.60229063,1248.5,1248.4,6.32053423]
[1672984383489,2.39449063,1248.5,1248.4,6.32053423]
[1672984383803,5.60229063,1248.5,1248.4,6.32053423]
[1672984384015,2.39449063,1248.5,1248.4,6.32053423]
[1672984384333,5.60229063,1248.5,1248.4,6.32053423]
[1672984384855,8.59595347,1248.5,1248.4,4.90072964]
[1672984386645,6.20146284,1248.5,1248.4,4.90072964]
[1672984387270,6.20146284,1248.5,1248.4,2.5]
[1672984387477,6.20146284,1248.5,1248.4,4.90072964]
[1672984391476,2.99366284,1248.5,1248.4,4.90072964]
[1672984391687,8.59542991,1248.5,1248.4,4.90072964]
[1672984394525,5.38762991,1248.5,1248.4,4.90072964]
[1672984394840,8.59542991,1248.5,1248.4,4.90072964]
[1672984395059,5.38762991,1248.5,1248.4,4.90072964]
[1672984395270,8.59542991,1248.5,1248.4,4.90072964]
[1672984395799,5.38762991,1248.5,1248.4,4.90072964]
[1672984395996,8.59181298,1248.5,1248.4,4.90072964]
[1672984396630,6.19784591,1248.5,1248.4,4.90072964]
[1672984397058,2.99004591,1248.5,1248.4,4.90072964]
[1672984397272,6.19784591,1248.5,1248.4,4.90072964]
[1672984397586,8.59212901,1248.5,1248.4,4.90072964]
[1672984398530,6.19784591,1248.5,1248.4,4.90072964]
[1672984399581,8.59232503,1248.5,1248.4,4.90072964]
[1672984399894,8.59232503,1248.5,1248.4,6.32052072]
[1672984400104,5.60227912,1248.5,1248.4,6.32052072]
[1672984400314,1.79609652,1248.5,1248.4,14.91886983]
[1672984400629,4.19057564,1248.6,1248.4,11.91779108]
[1672984400835,4.19057564,1248.6,1248.5,3.82033045]
[1672984401368,1.79609652,1248.6,1248.5,12.4184653]
[1672984402212,1.79609652,1248.6,1248.5,14.81803666]
[1672984404315,1.79609652,1248.6,1248.5,11.81736244]
[1672984406419,1.79609652,1248.6,1248.5,10.39757136]
[1672984406628,4.19057564,1248.6,1248.5,10.39757136]
[1672984407676,1.79609652,1248.6,1248.5,10.39757136]
[1672984409050,1.79609652,1248.6,1248.5,11.81718595]
[1672984409363,1.79609652,1248.6,1248.5,14.81786017]
[1672984409573,7.39837564,1248.7,1248.6,2.5]
[1672984409775,7.39837564,1248.7,1248.6,4.89860611]
[1672984410410,5.00389652,1248.7,1248.6,4.89860611]
[1672984411887,1.79609652,1248.7,1248.6,4.89860611]
[1672984413359,1.79609652,1248.7,1248.6,12.89660611]
[1672984413990,1.79609652,1248.7,1248.6,10.498]
[1672984416093,1.79609652,1248.7,1248.6,12.89660611]
[1672984416303,1.79609652,1248.7,1248.6,10.498]
[1672984416617,4.19057564,1248.7,1248.6,11.69663347]
[1672984416828,2.39447912,1248.7,1248.6,11.69663347]
[1672984417041,1.79280406,1248.7,1248.6,10.498]
[1672984417248,1.79280406,1248.7,1248.6,11.69660956]
[1672984417452,4.18728318,1248.7,1248.6,3.69860956]
[1672984418828,1.79280406,1248.7,1248.6,3.69860956]
[1672984419032,1.79280406,1248.7,1248.6,2.5]
[1672984419558,4.18728318,1248.7,1248.6,3.69858736]
[1672984419771,4.18728318,1248.7,1248.6,3.69859476]
[1672984420822,4.18721677,1248.7,1248.6,3.69859476]
[1672984421028,4.18721677,1248.7,1248.6,5.49656716]
[1672984421231,2.39447912,1248.7,1248.6,5.49656716]
[1672984423870,5.60227912,1248.7,1248.6,5.49656716]
[1672984424608,2.39447912,1248.7,1248.6,5.49656716]
[1672984424819,5.60227912,1248.7,1248.6,5.49656716]
[1672984425341,5.60227912,1248.7,1248.6,3.69859476]
[1672984425652,5.60227912,1248.7,1248.6,5.49656716]
[1672984432280,8.59080866,1248.7,1248.6,5.49656716]
[1672984433223,5.38300866,1248.7,1248.6,2.99656716]
[1672984433426,6.19632954,1248.7,1248.6,1.19859476]
[1672984433636,6.19632954,1248.7,1248.6,2.99656716]
[1672984435102,6.19632954,1248.7,1248.6,5.49656716]
[1672984435521,2.98852954,1248.7,1248.6,5.49656716]
[1672984435741,6.19632954,1248.7,1248.6,5.49656716]
[1672984436261,6.19632954,1248.7,1248.6,4.2979724]
[1672984436469,2.98852954,1248.7,1248.6,4.2979724]
[1672984436680,6.19632954,1248.7,1248.6,5.49823703]
[1672984436892,2.98852954,1248.7,1248.6,5.49823703]
[1672984437107,6.19632954,1248.7,1248.6,5.49823703]
[1672984437318,6.19632954,1248.7,1248.6,4.2979724]
[1672984438478,6.19632954,1248.7,1248.6,6.69657851]
[1672984438684,6.19632954,1248.7,1248.6,4.2979724]
[1672984438898,6.19632954,1248.7,1248.6,6.69657851]
[1672984439634,6.19632954,1248.7,1248.6,4.89860611]
[1672984440049,2.98852954,1248.7,1248.6,4.89860611]
[1672984440371,6.19632954,1248.7,1248.6,4.89860611]
[1672984441001,6.19632954,1248.7,1248.6,6.31818199]
[1672984441735,2.98852954,1248.7,1248.6,6.31818199]
[1672984443408,5.38326488,1248.7,1248.6,6.31818199]
[1672984444036,2.98852954,1248.7,1248.6,6.31818199]
[1672984444884,5.38320908,1248.7,1248.6,6.31818199]
[1672984445298,2.98852954,1248.7,1248.6,6.31818199]
[1672984450241,2.98852954,1248.7,1248.6,4.89860611]
[1672984450451,5.38317372,1248.7,1248.6,6.31817995]
[1672984450768,2.98852954,1248.7,1248.6,6.31817995]
[1672984452015,5.3832316,1248.7,1248.6,6.31817995]
[1672984452236,2.98852954,1248.7,1248.6,6.31817995]
[1672984452866,6.19632954,1248.7,1248.6,6.31817995]
[1672984453180,8.59124506,1248.7,1248.6,6.31817995]
[1672984453815,5.60271552,1248.7,1248.6,6.31817995]
[1672984454338,8.59124506,1248.7,1248.6,9.31885417]
[1672984454547,5.60271552,1248.7,1248.6,9.31885417]
[1672984455496,5.60271552,1248.7,1248.6,6.31817995]
[1672984455805,8.59124506,1248.7,1248.6,6.31817995]
[1672984456334,6.19632954,1248.7,1248.6,6.31817995]
[1672984456536,8.59146429,1248.7,1248.6,6.31817995]
[1672984456746,6.19632954,1248.7,1248.6,6.31817995]
[1672984456956,8.59149158,1248.7,1248.6,6.31817995]
[1672984457387,6.19632954,1248.7,1248.6,6.31817995]
[1672984457592,6.19632954,1248.7,1248.6,4.89860611]
[1672984458433,6.19632954,1248.7,1248.6,6.31818919]
[1672984458646,6.19632954,1248.7,1248.6,6.70016225]
[1672984458857,6.19632954,1248.7,1248.6,4.89860611]
[1672984459372,6.19632954,1248.7,1248.6,6.70020958]
[1672984460221,6.19632954,1248.7,1248.6,4.89860611]
[1672984461804,6.19632954,1248.7,1248.6,6.70021747]
[1672984462959,6.19632954,1248.7,1248.6,1.80161136]
[1672984463171,6.19632954,1248.7,1248.6,4.20021747]
[1672984463585,3.2078,1248.7,1248.6,1.80161136]
[1672984463794,6.20169105,1248.7,1248.6,4.20021747]
[1672984464011,6.20169105,1248.7,1248.6,1.80161136]
[1672984464749,6.20169105,1248.7,1248.6,4.30161136]
[1672984464957,6.20169105,1248.7,1248.6,1.80161136]
[1672984465481,6.20148183,1248.7,1248.6,1.80161136]
[1672984467797,2.99368183,1248.7,1248.6,1.80161136]
[1672984468117,6.20148183,1248.7,1248.6,1.80161136]
[1672984469585,6.20148183,1248.7,1248.6,4.30161136]
[1672984470421,6.20148183,1248.7,1248.6,6.70021747]
[1672984472951,2.99368183,1248.7,1248.6,6.70021747]
[1672984473157,6.20148183,1248.7,1248.6,6.70021747]
[1672984474317,6.20148183,1248.7,1248.6,6.69428461]
[1672984475049,6.20148183,1248.7,1248.6,4.2956785]
[1672984476731,6.20148183,1248.7,1248.6,6.69428461]
[1672984477043,6.20148183,1248.7,1248.6,4.2956785]
[1672984477258,6.20148183,1248.7,1248.6,6.69428461]
[1672984478097,6.20148183,1248.7,1248.6,4.89860611]
[1672984478719,6.20148183,1248.7,1248.6,2.5]
[1672984478925,6.20148183,1248.7,1248.6,4.89860611]
[1672984481777,6.20148183,1248.7,1248.6,6.31818761]
[1672984482402,2.99368183,1248.7,1248.6,6.31818761]
[1672984482718,6.20148183,1248.7,1248.6,6.31818761]
[1672984483561,2.99368183,1248.7,1248.6,6.31818761]
[1672984483867,6.20148183,1248.7,1248.6,6.31818761]
[1672984484715,2.99368183,1248.7,1248.6,6.31818761]
[1672984486186,6.20148183,1248.7,1248.6,6.31818761]
[1672984486809,6.20148183,1248.7,1248.6,4.89860611]
[1672984487657,6.20148183,1248.7,1248.6,6.3181926]
[1672984488391,8.59659634,1248.7,1248.6,6.3181926]
[1672984489336,8.59642817,1248.7,1248.6,6.3181926]
[1672984489757,5.38862817,1248.7,1248.6,6.3181926]
[1672984489962,2.39494634,1248.7,1248.6,9.32207407]
[1672984490601,2.39494634,1248.7,1248.6,9.32208177]
[1672984490915,2.39494634,1248.7,1248.6,6.92026071]
[1672984491228,2.39494634,1248.7,1248.6,9.32208306]
[1672984491438,2.39494634,1248.7,1248.6,17.32008306]
[1672984492275,2.39494634,1248.7,1248.6,14.91826071]
[1672984493959,2.39494634,1248.7,1248.6,17.31952585]
[1672984494171,2.39494634,1248.7,1248.6,14.91826071]
[1672984495644,4.19061407,1248.7,1248.6,14.91826071]
[1672984496490,2.39494634,1248.7,1248.6,14.91826071]
[1672984496698,2.39494634,1248.7,1248.6,17.31935148]
[1672984497110,2.39494634,1248.7,1248.6,14.91826071]
[1672984497319,2.39494634,1248.7,1248.6,17.31914607]
[1672984498693,4.19045732,1248.7,1248.6,14.91826071]
[1672984499425,4.19045732,1248.7,1248.6,17.31885798]
[1672984500369,4.19045732,1248.7,1248.6,14.91826071]
[1672984500789,4.19045732,1248.7,1248.6,17.3188475]
[1672984501000,4.19045732,1248.7,1248.6,14.91826071]
[1672984501527,4.19045732,1248.7,1248.6,17.31878454]
[1672984502579,4.19045732,1248.7,1248.6,14.91826071]
[1672984502790,4.19045732,1248.7,1248.6,17.31878538]
[1672984503000,1.79551098,1248.7,1248.6,14.91826071]
[1672984503314,4.19045732,1248.7,1248.6,17.31864719]
[1672984504040,4.19045732,1248.7,1248.6,14.31797297]
[1672984504994,4.1901476,1248.7,1248.6,17.31864719]
[1672984505406,2.39494634,1248.7,1248.6,14.31797297]
[1672984505617,4.19018727,1248.7,1248.6,17.31864719]
[1672984507509,1.79524093,1248.7,1248.6,14.91826071]
[1672984510555,4.19018727,1248.7,1248.6,17.31870399]
[1672984511820,1.79524093,1248.7,1248.6,14.91826071]
[1672984520856,4.19018727,1248.8,1248.6,11.91758649]
[1672984521058,4.19018727,1248.9,1248.7,12.62538649]
[1672984521272,1.79524093,1248.9,1248.8,4.41963559]
[1672984521491,4.19018727,1248.9,1248.8,9.31968358]
[1672984521800,1.74719673,1249.0,1248.8,11.91758649]
[1672984522012,1.74719673,1249.0,1248.9,9.31923665]
[1672984522013,4.14214307,1249.0,1248.9,9.31923665]
[1672984522419,4.14214307,1249.0,1248.9,6.91936189]
[1672984522850,2.39494634,1249.1,1248.9,14.91736189]
[1672984523053,2.39494634,1249.1,1249.0,2.5]
[1672984523470,8.10274634,1249.1,1249.0,2.5]
[1672984523691,8.10274634,1249.1,1249.0,3.69883064]
[1672984524109,11.09292412,1249.1,1249.0,3.69883064]
[1672984525052,11.09292412,1249.1,1249.0,1.19883064]
[1672984526100,8.70148183,1249.1,1249.0,1.19883064]
[1672984527059,8.70148183,1249.1,1248.9,11.69683064]
[1672984527271,2.3902885,1249.0,1248.9,11.69683064]
[1672984527480,2.5,1249.0,1248.9,10.498]
[1672984528004,8.0980885,1249.1,1249.0,2.5]
[1672984528211,8.0980885,1249.1,1249.0,3.69832942]
[1672984528421,5.5980885,1249.1,1249.0,3.69832942]
[1672984530215,2.3902885,1249.1,1249.0,3.69832942]
[1672984530417,5.5980885,1249.1,1249.0,3.69832942]
[1672984531898,2.3902885,1249.1,1249.0,3.69832942]
[1672984532107,5.5980885,1249.1,1249.0,3.69832942]
[1672984532321,2.3902885,1249.1,1249.0,3.69832942]
[1672984532631,5.5980885,1249.1,1249.0,3.69832942]
[1672984535785,5.5980885,1249.1,1249.0,1.19832942]
[1672984536413,5.5980885,1249.1,1249.0,3.69832942]
[1672984538314,5.5980885,1249.1,1249.0,1.19832942]
[1672984538511,5.5980885,1249.1,1248.9,13.49288106]
[1672984538826,5.5980885,1249.1,1248.9,5.49488106]
[1672984540197,5.5980885,1249.1,1248.9,13.49288106]
[1672984540408,5.5980885,1249.1,1248.9,5.49488106]
[1672984540825,5.5980885,1249.1,1248.9,3.69832942]
[1672984541034,5.5980885,1249.1,1248.9,5.49488106]
[1672984541463,8.59177033,1249.1,1248.9,3.69832942]
[1672984541674,8.59177033,1249.1,1248.9,5.49488106]
[1672984541883,8.59177033,1249.1,1248.9,3.69832942]
[1672984542831,8.59177033,1249.1,1248.9,5.49488106]
[1672984543142,3.2078,1249.0,1248.9,5.49488106]
[1672984543346,5.7078,1249.0,1248.9,5.49488106]
[1672984543981,3.2078,1249.0,1248.9,5.49488106]
[1672984544397,2.5,1249.0,1248.9,13.49288106]
[1672984544610,5.7078,1249.0,1248.9,13.49288106]
[1672984544927,3.2078,1249.0,1248.9,13.49288106]
[1672984546506,2.3902885,1249.1,1248.9,13.49288106]
[1672984546821,5.5980885,1249.1,1248.9,13.49288106]
[1672984547031,8.59177033,1249.1,1248.9,13.49288106]
[1672984547549,8.59177033,1249.1,1249.0,1.19832942]
[1672984548189,5.5980885,1249.1,1249.0,1.19832942]
[1672984548807,2.3902885,1249.1,1249.0,1.19832942]
[1672984549129,5.5980885,1249.1,1249.0,1.19832942]
[1672984549340,2.3902885,1249.1,1249.0,1.19832942]
[1672984549552,5.5980885,1249.1,1249.0,1.19832942]
[1672984549961,5.5980885,1249.1,1249.0,2.99488106]
[1672984551970,2.99368183,1249.2,1249.0,14.31454544]
[1672984551971,2.3902885,1249.2,1249.0,14.31454544]
[1672984552171,2.3902885,1249.2,1249.1,1.79761895]
[1672984552383,2.3902885,1249.2,1249.1,4.29761895]
[1672984552589,2.3902885,1249.2,1249.1,5.49605171]
[1672984557541,2.3902885,1249.2,1249.1,4.29761895]
[1672984557752,2.3902885,1249.2,1249.1,5.49643027]
[1672984559009,2.3902885,1249.2,1249.1,4.29761895]
[1672984561212,5.38397033,1249.2,1249.1,4.29761895]
[1672984562896,5.38397033,1249.2,1249.1,5.49701752]
[1672984562897,2.99368183,1249.2,1249.1,5.49701752]
[1672984563942,2.99368183,1249.2,1249.1,2.99701752]
[1672984564685,2.99368183,1249.2,1249.1,5.49701752]
[1672984565206,6.20148183,1249.2,1249.1,5.49701752]
[1672984566785,2.99368183,1249.2,1249.1,5.49701752]
[1672984568252,5.38697503,1249.2,1249.1,4.29761895]
[1672984568462,2.99368183,1249.2,1249.1,5.49695399]
[1672984568673,5.38698642,1249.2,1249.1,4.29761895]
[1672984569305,5.38692841,1249.2,1249.1,4.29761895]
[1672984569730,2.99368183,1249.2,1249.1,5.49690772]
[1672984570459,5.38689793,1249.2,1249.1,4.29761895]
[1672984572354,5.38689793,1249.2,1249.1,1.79761895]
[1672984572672,5.38684299,1249.2,1249.1,4.29761895]
[1672984572982,2.39316116,1249.2,1249.1,4.29761895]
[1672984573930,5.38684299,1249.2,1249.1,4.29761895]
[1672984574244,2.39316116,1249.2,1249.1,4.29761895]
[1672984575298,2.39316116,1249.2,1249.1,12.29561895]
[1672984575503,2.39316116,1249.3,1249.1,17.31420018]
[1672984575711,2.39316116,1249.3,1249.2,1.79844863]
[1672984576451,2.39316116,1249.3,1249.2,4.29844863]
[1672984577289,2.39316116,1249.3,1249.2,6.69600959]
[1672984577497,5.38684299,1249.4,1249.2,4.89756096]
[1672984577710,2.99368183,1249.4,1249.3,3.69865467]
[1672984584231,2.99368183,1249.4,1249.3,1.19865467]
[1672984588755,6.20148183,1249.4,1249.3,1.19865467]
[1672984589277,2.99368183,1249.4,1249.3,1.19865467]
[1672984589485,6.20148183,1249.4,1249.3,1.19865467]
[1672984590427,2.99368183,1249.4,1249.3,1.19865467]
[1672984590642,6.20148183,1249.4,1249.3,1.19865467]
[1672984591058,2.99368183,1249.4,1249.3,1.19865467]
[1672984591272,6.20148183,1249.4,1249.3,1.19865467]
[1672984591484,2.99368183,1249.4,1249.3,1.19865467]
[1672984591687,6.20148183,1249.4,1249.3,1.19865467]
[1672984592949,6.20148183,1249.4,1249.3,1.19108239]
[1672984595897,6.20148183,1249.4,1249.3,2.9890644]
[1672984596212,6.20148183,1249.4,1249.3,1.19108239]
[1672984599153,2.99368183,1249.4,1249.3,1.19108239]
[1672984604620,2.99368183,1249.4,1249.3,2.9890644]
[1672984605980,2.99368183,1249.4,1249.3,1.79798201]
[1672984607143,2.5,1249.4,1249.2,12.29598201]
[1672984607350,5.38844354,1249.3,1249.2,12.29598201]
[1672984607559,5.38844354,1249.3,1249.2,14.69354297]
[1672984607775,5.38844354,1249.3,1249.2,6.69554297]
[1672984608406,8.59624354,1249.3,1249.2,6.69554297]
[1672984608623,8.59624354,1249.3,1249.2,4.29798201]
[1672984609152,6.20137974,1249.3,1249.2,6.69554297]
[1672984609358,6.20137974,1249.3,1249.2,1.79798201]
[1672984610094,2.99357974,1249.3,1249.2,1.79798201]
[1672984610309,6.20137974,1249.3,1249.2,4.29798201]
[1672984610622,5.6029769,1249.3,1249.2,4.89756096]
[1672984610931,8.59655664,1249.3,1249.2,4.89756096]
[1672984611139,5.38875664,1249.3,1249.2,6.31642444]
[1672984612194,5.38875664,1249.3,1249.2,4.89756096]
[1672984612403,5.38875664,1249.3,1249.2,6.31642845]
[1672984613137,2.99357974,1249.3,1249.2,6.31642845]
[1672984613983,5.39000519,1249.3,1249.2,6.31642845]
[1672984614934,2.99357974,1249.3,1249.2,9.31620385]
[1672984617132,2.99357974,1249.3,1249.2,6.31642845]
[1672984618813,2.99357974,1249.3,1249.2,3.81642845]
[1672984619231,5.7078,1249.4,1249.2,1.80108028]
[1672984619443,2.99634901,1249.3,1249.2,6.69864124]
[1672984619764,9.29682793,1249.4,1249.2,4.30108028]
[1672984620285,9.29682793,1249.4,1249.2,1.80108028]
[1672984620917,9.29682793,1249.4,1249.2,4.19864124]
[1672984621127,2.99624897,1249.3,1249.2,2.39756096]
[1672984621333,2.99624897,1249.3,1249.2,4.19860504]
[1672984622485,9.29682793,1249.4,1249.2,1.80104408]
[1672984622907,6.20298623,1249.3,1249.2,1.80104408]
[1672984624483,3.2078,1249.3,1249.2,1.80104408]
[1672984625010,6.20315602,1249.3,1249.2,1.80104408]
[1672984625532,3.2078,1249.3,1249.2,1.80104408]
[1672984628471,3.2078,1249.3,1249.1,1.80104408]
[1672984628693,5.49337403,1249.2,1249.1,1.80104408]
[1672984631543,8.70117403,1249.2,1249.1,1.80104408]
[1672984634367,5.49337403,1249.2,1249.1,1.80104408]
[1672984634571,5.49337403,1249.2,1249.0,6.69860504]
[1672984634787,4.89309948,1249.1,1249.0,6.69860504]
[1672984634998,6.68784945,1249.1,1249.0,6.69860504]
[1672984635533,6.68784945,1249.1,1249.0,4.19860504]
[1672984635742,6.68784945,1249.1,1249.0,6.69860504]
[1672984637099,4.18784945,1249.1,1249.0,6.69860504]
[1672984640787,1.79474997,1249.1,1249.0,6.69860504]
[1672984640996,4.18784945,1249.1,1249.0,6.69860504]
[1672984642148,4.18784945,1249.1,1249.0,4.19860504]
[1672984642357,4.18784945,1249.1,1249.0,6.69860504]
[1672984642569,1.79474997,1249.1,1249.0,6.69860504]
[1672984642885,4.18784945,1249.1,1249.0,6.69860504]
[1672984643412,1.79474997,1249.1,1249.0,6.69860504]
[1672984643616,4.18784945,1249.1,1249.0,6.69860504]
[1672984643939,1.79474997,1249.1,1249.0,6.69860504]
[1672984644874,4.18784945,1249.1,1249.0,6.69860504]
[1672984645303,1.79474997,1249.1,1249.0,4.89756096]
[1672984645515,2.99111452,1249.1,1249.0,6.31656379]
[1672984646145,2.99111452,1249.1,1249.0,9.31633919]
[1672984647091,1.19636455,1249.1,1249.0,10.12657823]
[1672984649933,1.19636455,1249.1,1249.0,6.91877823]
[1672984656659,1.19636455,1249.1,1249.0,14.91677823]
[1672984657285,1.19636455,1249.1,1249.0,11.91700283]
[1672984657911,1.19636455,1249.1,1249.0,14.9156132]
[1672984658334,1.19636455,1249.1,1249.0,18.1234132]
[1672984658551,1.19636455,1249.1,1249.0,14.9156132]
[1672984658754,0.00036455,1249.1,1249.0,18.1234132]
[1672984658972,5.38647351,1249.5,1249.1,1.1834]
[1672984659178,5.38647351,1249.5,1249.4,4.19758294]
[1672984659388,2.39309948,1249.5,1249.4,4.89861882]
[1672984660543,2.39309948,1249.5,1249.4,4.29744503]
[1672984662444,2.39309948,1249.6,1249.4,4.29742793]
[1672984665170,2.39309948,1249.6,1249.4,12.29542793]
[1672984665378,2.39309948,1249.7,1249.6,2.5]
[1672984666630,7.88647351,1249.8,1249.6,2.5]
[1672984666848,4.89309948,1249.8,1249.6,2.5]
[1672984667484,2.39309948,1249.8,1249.6,2.5]
[1672984668008,4.89309948,1249.8,1249.6,2.5]
[1672984669491,2.39309948,1249.8,1249.6,2.5]
[1672984670220,2.5,1249.7,1249.4,12.29542793]
[1672984670429,2.5,1249.6,1249.4,12.29542793]
[1672984671905,8.10089948,1249.7,1249.4,12.29542793]
[1672984673163,4.89309948,1249.7,1249.4,12.29542793]
[1672984673480,2.5,1249.6,1249.4,12.29542793]
[1672984673797,2.5,1249.6,1249.4,10.498]
[1672984674002,2.5,1249.6,1249.4,2.5]
[1672984674853,5.7078,1249.6,1249.4,2.5]
[1672984675052,5.7078,1249.6,1249.4,10.498]
[1672984675263,5.7078,1249.6,1249.4,2.5]
[1672984675476,5.7078,1249.6,1249.3,1.79742793]
[1672984675790,2.5,1249.3,1249.2,15.37942793]
[1672984676002,2.5,1249.3,1249.2,4.29742793]
[1672984676213,2.5,1249.3,1249.1,1.79942793]
[1672984676424,2.5,1249.3,1249.1,0.002]
[1672984676636,2.5,1249.3,1249.1,4.29942793]
[1672984678208,3.2078,1249.2,1249.1,4.29942793]
[1672984678419,3.2078,1249.2,1249.1,1.79942793]
[1672984678952,2.5,1249.3,1249.1,4.29942793]
[1672984679156,3.2078,1249.2,1249.1,4.29942793]
[1672984679370,3.2078,1249.2,1249.1,0.002]
[1672984687046,2.5,1249.3,1249.1,0.002]
[1672984687466,3.2078,1249.2,1249.1,0.002]
[1672984687677,2.5,1249.3,1249.1,0.002]
[1672984688415,3.2078,1249.2,1249.1,0.002]
[1672984692728,4.89309948,1249.3,1249.1,0.002]
[1672984692934,3.2078,1249.2,1249.1,0.002]
[1672984694405,4.89309948,1249.3,1249.1,0.002]
[1672984694618,3.2078,1249.2,1249.1,0.002]
[1672984701765,3.2078,1249.2,1249.1,1.79942793]
[1672984702076,2.5,1249.3,1249.1,1.79942793]
[1672984702289,2.5,1249.3,1249.1,4.29942793]
[1672984705131,8.10089948,1249.4,1249.1,4.29942793]
[1672984705334,5.7078,1249.4,1249.1,6.69804675]
[1672984705549,8.10089948,1249.4,1249.1,4.29942793]
[1672984705866,5.7078,1249.4,1249.1,6.69804675]
[1672984706185,8.10089948,1249.4,1249.1,4.29942793]
[1672984706500,8.10089948,1249.4,1249.2,1.79742793]
[1672984706711,8.10089948,1249.4,1249.3,2.5]
[1672984707973,4.89309948,1249.4,1249.3,2.5]
[1672984708176,8.10089948,1249.4,1249.1,6.69804675]
[1672984708385,8.10089948,1249.4,1249.1,4.29942793]
[1672984708591,8.10089948,1249.4,1249.1,6.69804675]
[1672984708911,8.10089948,1249.4,1249.3,2.5]
[1672984709654,11.09427351,1249.4,1249.3,2.5]
[1672984710282,11.09427351,1249.4,1249.1,6.69804675]
[1672984710600,2.39309948,1249.3,1249.2,1.79742793]
[1672984711754,5.60089948,1249.3,1249.2,1.79742793]
[1672984711960,3.2078,1249.3,1249.2,1.79742793]
[1672984712489,5.60089948,1249.3,1249.2,4.19604675]
[1672984713427,5.60089948,1249.3,1249.2,1.79742793]
[1672984713866,2.39309948,1249.3,1249.2,1.79742793]
[1672984714071,5.60089948,1249.3,1249.2,1.79742793]
[1672984714490,5.38647351,1249.3,1249.2,3.81749762]
[1672984714698,8.59427351,1249.3,1249.2,3.81749762]
[1672984715125,5.38647351,1249.3,1249.2,3.81749762]
[1672984715336,8.59427351,1249.3,1249.2,3.81749762]
[1672984716171,5.60089948,1249.3,1249.2,3.81749762]
[1672984719326,6.20117403,1249.3,1249.2,4.1984923]
[1672984719538,8.59572996,1249.3,1249.2,3.81749928]
[1672984719959,5.60235593,1249.3,1249.2,3.81749928]
[1672984724586,2.39455593,1249.3,1249.2,3.81749928]
[1672984728797,2.3886565,1249.3,1249.2,6.81577281]
[1672984729525,2.3886565,1249.3,1249.2,3.81749928]
[1672984730784,2.3886565,1249.3,1249.2,6.81577281]
[1672984731839,2.3886565,1249.3,1249.2,3.81749928]
[1672984732365,2.3886565,1249.3,1249.2,6.81577281]
[1672984732996,2.3886565,1249.3,1249.2,3.81749928]
[1672984733308,2.3886565,1249.3,1249.2,6.81577281]
[1672984733518,4.18511713,1249.3,1249.2,12.41515399]
[1672984733727,1.79646063,1249.3,1249.2,12.41515399]
[1672984734472,6.20117403,1249.4,1249.2,12.41515399]
[1672984734673,6.20117403,1249.4,1249.3,4.19982393]
[1672984734886,6.20117403,1249.4,1249.3,6.69982393]
[1672984735940,6.20117403,1249.4,1249.3,4.29992454]
[1672984736367,6.20117403,1249.4,1249.3,1.79992454]
[1672984738150,6.20117403,1249.4,1249.3,4.19982393]